fUSD/lending_fUSD_20240715
["ID","MTS","AMOUNT","RATE_DAILY","PERIOD"]
[332173198,1721004643901,-82.16005528,0.00013178,2]
[332173202,1721004643911,-275.29411076,0.00013543,2]
[332173206,1721004643919,-54.94932701,0.000139,2]
[332173208,1721004643931,-301.616,0.000139,2]
[332173213,1721004643949,-72.31846243,0.000139,2]
[332173215,1721004643958,-251.32294801,0.00013989,2]
[332173218,1721004643968,-500.0,0.00013989,2]
[332173221,1721004643977,-500.0,0.00013989,2]
[332173223,1721004643986,-500.0,0.00013989,2]
[332173226,1721004643995,-500.0,0.00013989,2]
[332173229,1721004644004,-500.0,0.00013989,2]
[332173232,1721004644014,-500.0,0.00013989,2]
[332173234,1721004644022,-500.0,0.00013989,2]
[332173236,1721004644031,-500.0,0.00013989,2]
[332173239,1721004644040,-414.48703667,0.00013989,2]
[332173242,1721004644049,-320.31519733,0.00013989,2]
[332173245,1721004644061,-500.0,0.00013989,2]
[332173247,1721004644070,-500.0,0.00013989,2]
[332173250,1721004644079,-500.0,0.00013989,2]
[332173253,1721004644088,-500.0,0.00013989,2]
[332173255,1721004644097,-500.0,0.00013989,2]
[332173258,1721004644107,-500.0,0.00013989,2]
[332173261,1721004644116,-500.0,0.00013989,2]
[332173263,1721004644125,-500.0,0.00013989,2]
[332173266,1721004644135,-1844.19,0.00013989,2]
[332173269,1721004644144,-596.1734547,0.00013989,2]
[332173272,1721004644153,-500.0,0.00013989,2]
[332173274,1721004644162,-500.0,0.00013989,2]
[332173277,1721004644172,-500.0,0.00013989,2]
[332173279,1721004644180,-764.5,0.00013989,2]
[332173281,1721004644189,-500.0,0.00013989,2]
[332173283,1721004644198,-510.54,0.00013989,2]
[332173286,1721004644208,-209.85493582,0.00013989,2]
[332173288,1721004644217,-500.0,0.00013989,2]
[332173290,1721004644226,-379.49848619,0.00013989,2]
[332173293,1721004644235,-1560.48,0.00013989,2]
[332173295,1721004644244,-19670.742,0.00013993,2]
[332173297,1721004644253,-1156.9197165,0.00013993,2]
[332173300,1721004644265,-1722.8832835,0.00013993,2]
[332173302,1721004644275,-427.402,0.00013993,2]
[332173304,1721004644284,-1588.2691696,0.00013998,2]
[332173306,1721004644293,-856.4355856,0.00013998,2]
[332173308,1721004644304,-3617.33731849,0.00013998,2]
[332173310,1721004644315,-357.60167007,0.00013998,2]
[332173312,1721004644326,-3638.2934955,0.00013998,2]
[332173314,1721004644337,-1203.47342585,0.00013998,2]
[332173316,1721004644349,-840.64392545,0.00013998,2]
[332173318,1721004644360,-559.40606601,0.00013998,2]
[332173321,1721004644371,-328.7496445,0.00013998,2]
[332173324,1721004644383,-1453.70545213,0.00013998,2]
[332173326,1721004644392,-293.86954787,0.00013998,2]
[332173329,1721004644404,-309.73944323,0.00013998,2]
[332173332,1721004644414,-210.04544762,0.00013999,2]
[332173334,1721004644424,-411.50121711,0.00014,2]
[332173338,1721004644435,-805.58956756,0.00014,2]
[332173344,1721004644447,-1023.82317081,0.00014,2]
[332173578,1721004646719,-155.0,0.00013899,2]
[332173580,1721004646729,-500.0,0.00013989,2]
[332173582,1721004646738,-325280.71506565,0.00014,2]
[332173584,1721004646749,-111615.4112537,0.00014,2]
[332173593,1721004646835,-6820.37072697,0.00014,2]
[332175852,1721004792883,151.0,0.00020237,120]
[332175858,1721004957215,1164.23,0.00018849,30]
[332175863,1721005272307,151.0,0.00020297,120]
[332175865,1721005520200,1067.21,0.00018849,30]
[332175888,1721005831763,-482.0,0.00010571,2]
[332175889,1721005831772,-102.59550704,0.00010572,2]
[332175890,1721005831784,-487.4499434,0.00010572,2]
[332175891,1721005831799,-1656.77834805,0.00010572,2]
[332175892,1721005831809,-571.05,0.00010671,2]
[332175893,1721005831819,-160.90800127,0.00010998,2]
[332175894,1721005831830,-685.74697469,0.00011098,2]
[332175895,1721005831839,-438.90501237,0.00011098,2]
[332175896,1721005831848,-2823.9551266,0.00011098,2]
[332175897,1721005831857,-156.0,0.00011199,2]
[332175898,1721005831866,-299.1423514,0.00011199,2]
[332175899,1721005831875,-438.11,0.00012273,2]
[332175900,1721005831885,-576.84,0.00012307,2]
[332175901,1721005831894,-176.25,0.00012344,2]
[332175903,1721005831902,-4411.42418562,0.00012358,2]
[332175905,1721005831914,-603.50800002,0.00012358,2]
[332175928,1721005837489,-2104.99781436,0.00012358,2]
[332175930,1721005837499,-956.61,0.00012427,2]
[332175932,1721005837508,-13.02918564,0.00012427,2]
[332175933,1721005837519,-467.60081436,0.00012427,2]
[332175934,1721005837527,-965.56,0.00012429,2]
[332175935,1721005837536,-250.0,0.00012472,2]
[332175936,1721005837545,-425.01,0.00012493,2]
[332175937,1721005837553,-250.0,0.00012512,2]
[332175938,1721005837563,-403.32,0.00012609,2]
[332175939,1721005837572,-499.99,0.00012609,2]
[332175940,1721005837582,-186.2,0.00012708,2]
[332175941,1721005837591,-208.27,0.00012763,2]
[332175942,1721005837600,-208.27,0.00012827,2]
[332175943,1721005837609,-571.05,0.00012935,2]
[332175944,1721005837618,-1000.0,0.00013051,2]
[332175945,1721005837627,-173.76446536,0.00013128,2]
[332175946,1721005837636,-3360.17452129,0.00013472,2]
[332175947,1721005837644,-150.0,0.00013478,2]
[332175948,1721005837653,-150.0,0.00013478,2]
[332175949,1721005837662,-150.0,0.00013478,2]
[332175950,1721005837671,-150.0,0.00013584,2]
[332175951,1721005837680,-8005.0,0.00013584,2]
[332175952,1721005837689,-225.26,0.00013699,2]
[332175953,1721005837698,-250.0,0.00013699,2]
[332175954,1721005837707,-2500.0,0.0001389,2]
[332175955,1721005837716,-379.49848619,0.00013899,2]
[332175956,1721005837725,-344.12345252,0.00013899,2]
[332175957,1721005837734,-1000.0,0.000139,2]
[332175958,1721005837743,-1000.0,0.00013973,5]
[332175959,1721005837752,-32476.5533624,0.0001398,2]
[332175960,1721005837762,-500.0,0.00013989,2]
[332175961,1721005837771,-495.97302476,0.00013989,2]
[332175962,1721005837780,-500.0,0.00013989,2]
[332175963,1721005837789,-500.0,0.00013989,2]
[332175964,1721005837798,-192.30411805,0.00013989,2]
[332175965,1721005837807,-227.3638533,0.00013989,2]
[332175966,1721005837816,-2229.1357796,0.00013998,2]
[332175967,1721005837825,-7218.0295204,0.00013998,2]
[332175968,1721005837836,-5933.21207966,0.00013999,2]
[332175969,1721005837848,-150.01,0.00013999,2]
[332175970,1721005837857,-150.0,0.00013999,2]
[332175971,1721005837866,-500.0,0.00013999,2]
[332175972,1721005837875,-512.43759703,0.00013999,5]
[332175973,1721005837884,-500.0,0.00013999,2]
[332175974,1721005837893,-500.0,0.00013999,2]
[332175975,1721005837902,-500.0,0.00013999,2]
[332175976,1721005837911,-500.0,0.00013999,2]
[332175977,1721005837920,-500.0,0.00013999,2]
[332175978,1721005837930,-238.47486263,0.00013999,2]
[332175980,1721005837939,-500.0,0.00013999,2]
[332175982,1721005837948,-500.0,0.00013999,2]
[332175984,1721005837958,-500.0,0.00013999,2]
[332175985,1721005837968,-500.0,0.00013999,2]
[332175987,1721005837977,-500.0,0.00013999,2]
[332175989,1721005837985,-500.0,0.00013999,2]
[332175991,1721005837995,-500.0,0.00013999,2]
[332175993,1721005838004,-500.0,0.00013999,2]
[332175995,1721005838014,-500.0,0.00013999,2]
[332175997,1721005838023,-500.0,0.00013999,2]
[332175999,1721005838032,-500.0,0.00013999,2]
[332176001,1721005838041,-500.0,0.00013999,2]
[332176003,1721005838051,-500.0,0.00013999,2]
[332176007,1721005838059,-500.0,0.00013999,2]
[332176011,1721005838068,-500.0,0.00013999,2]
[332176015,1721005838077,-500.0,0.00013999,2]
[332176017,1721005838088,-500.0,0.00013999,2]
[332176019,1721005838097,-500.0,0.00013999,2]
[332176021,1721005838107,-500.0,0.00013999,2]
[332176023,1721005838116,-1767.35,0.00013999,2]
[332176024,1721005838125,-500.0,0.00013999,2]
[332176026,1721005838139,-1495.46,0.00013999,2]
[332176028,1721005838148,-621.29322029,0.00013999,2]
[332176030,1721005838157,-500.0,0.00013999,2]
[332176032,1721005838167,-500.0,0.00013999,2]
[332176034,1721005838177,-500.0,0.00013999,2]
[332176036,1721005838186,-500.0,0.00013999,2]
[332176038,1721005838195,-77121.9235744,0.00014,2]
[332176040,1721005838207,-27199.89158223,0.00014,2]
[332176043,1721005838220,-1138.18072319,0.00014,2]
[332176045,1721005838231,-1814.56851,0.00014,2]
[332176047,1721005838242,-798.92388834,0.00014,2]
[332176049,1721005838253,-16638.29361872,0.00014,2]
[332176051,1721005838264,-61518.99999999,0.00014,2]
[332176053,1721005838275,-4711.20330097,0.00014,2]
[332176056,1721005838290,-8472.50944622,0.00014,2]
[332176058,1721005838305,-584.30503301,0.00014,2]
[332176060,1721005838316,-529.12011047,0.00014,2]
[332176063,1721005838327,-3116.23335189,0.00014,2]
[332176065,1721005838341,-70512.55288488,0.00014,2]
[332176067,1721005838351,-389.71407589,0.00014,2]
[332176069,1721005838362,-10219.39772,0.00014,2]
[332176088,1721005839596,-32935.320011,0.00014,2]
[332176089,1721005839670,-15001.91222307,0.00014,2]
[332176090,1721005839881,-14493.74242332,0.00014,2]
[332176091,1721005839890,-719.0,0.00014,2]
[332176092,1721005839899,-73301.21523546,0.00014,2]
[332176093,1721005839929,-1209.54095137,0.00014,2]
[332176094,1721005839968,-474.621015,0.00014,2]
[332176114,1721005842883,-369.87651196,0.00013999,2]
[332176139,1721005845640,-156.0,0.00011197,2]
[332176140,1721005845650,-379.49848619,0.00013889,2]
[332176142,1721005845659,-130.12348804,0.00013999,2]
[332176144,1721005845668,-180.853171,0.00013999,2]
[332176605,1721005890502,1012.32,0.0002,20]
[332176610,1721006020287,551.08875788,0.0002,45]
[332176612,1721006100660,506.76,0.0001001,2]
[332176613,1721006107247,551.08875788,0.0002,45]
[332176614,1721006120240,551.08875788,0.0002,45]
[332176615,1721006123954,978.27,0.00018849,30]
[332176617,1721006347374,-152.0,0.00020014,37]
[332176618,1721006347399,-152.0,0.00020087,38]
[332176619,1721006347422,-152.0,0.0002016,39]
[332176620,1721006347453,-152.0,0.00020234,40]
[332176621,1721006347489,-152.0,0.00020307,41]
[332176622,1721006347513,-152.0,0.0002038,42]
[332176623,1721006347541,-151.0,0.00020787,30]
[332176624,1721006347583,-406.84853199,0.00022,30]
[332176625,1721006395762,551.08875788,0.00022,45]
[332176627,1721006485772,551.08875788,0.00022,45]
[332176629,1721006583775,551.08875788,0.00022,45]
[332176630,1721006666283,551.08875788,0.00022,45]
[332176632,1721006678358,896.74,0.00018849,30]
[332176658,1721007017276,239.39,0.000199,31]
[332176680,1721007032838,-285.33087968,0.00011098,2]
[332176681,1721007032997,-315.7795185,0.00011098,2]
[332176682,1721007033008,-696.77431602,0.00011098,2]
[332176683,1721007033019,-765.29022052,0.00011098,2]
[332176684,1721007033031,-360.35116936,0.00011098,2]
[332176685,1721007033042,-2981.50607554,0.00011098,2]
[332176686,1721007033051,-5346.649785,0.00011741,2]
[332176687,1721007033061,-2281.15822566,0.000118,2]
[332176688,1721007033070,-789.61914132,0.00012302,2]
[332176689,1721007033080,-186.2,0.00012674,2]
[332176690,1721007033089,-250.0,0.00012853,2]
[332176691,1721007033098,-250.0,0.00012853,2]
[332176692,1721007033107,-7703.2,0.00012863,2]
[332176693,1721007033118,-181.61,0.00012908,2]
[332176694,1721007033127,-386.98,0.00012908,2]
[332176695,1721007033136,-168.3,0.00012924,2]
[332176696,1721007033146,-1000.0,0.00013036,2]
[332176697,1721007033156,-499.99,0.00013229,2]
[332176698,1721007033165,-162.856367,0.00013265,2]
[332176699,1721007033176,-370.144069,0.00013265,2]
[332176700,1721007033185,-839.78,0.00013378,2]
[332176701,1721007033194,-370.144069,0.00013431,2]
[332176702,1721007033205,-1290.34138626,0.00013516,2]
[332176703,1721007033214,-479.92141116,0.00013516,2]
[332176704,1721007033223,-150.0,0.00013577,2]
[332176705,1721007033232,-165.09,0.00013578,2]
[332176706,1721007033241,-150.0,0.00013578,2]
[332176707,1721007033250,-424.94,0.00013578,2]
[332176708,1721007033260,-424.94,0.00013578,2]
[332176709,1721007033269,-165.09,0.00013578,2]
[332176710,1721007033278,-150.0,0.00013578,2]
[332176711,1721007033287,-424.94,0.00013578,2]
[332176712,1721007033297,-165.09,0.00013578,2]
[332176713,1721007033306,-150.0,0.00013578,2]
[332176714,1721007033315,-150.0,0.00013578,2]
[332176715,1721007033325,-424.94,0.00013578,2]
[332176716,1721007033334,-165.09,0.00013578,2]
[332176717,1721007033343,-150.0,0.00013578,2]
[332176718,1721007033352,-424.94,0.00013578,2]
[332176719,1721007033362,-424.94,0.00013578,2]
[332176720,1721007033373,-150.0,0.00013578,2]
[332176721,1721007033382,-424.94,0.00013578,2]
[332176722,1721007033392,-424.94,0.00013578,2]
[332176723,1721007033401,-370.144069,0.00013596,2]
[332176724,1721007033411,-500.0,0.00013699,2]
[332176725,1721007033420,-252.57,0.00013699,2]
[332176726,1721007033429,-250.0,0.00013699,2]
[332176727,1721007033438,-200.0,0.00013699,2]
[332176728,1721007033447,-475.48813563,0.00013759,2]
[332176729,1721007033457,-370.144069,0.00013762,2]
[332176730,1721007033467,-1103.31000929,0.000138,2]
[332176731,1721007033476,-11066.96981359,0.00013878,2]
[332176732,1721007033485,-6760.30143775,0.0001388,2]
[332176733,1721007033496,-500.0,0.00013887,2]
[332176734,1721007033507,-500.0,0.00013888,2]
[332176735,1721007033516,-500.0,0.00013888,2]
[332176736,1721007033526,-265.591,0.0001389,2]
[332176737,1721007033535,-158.38679976,0.00013899,2]
[332176738,1721007033546,-158.38679973,0.00013899,2]
[332176739,1721007033555,-158.38679973,0.000139,2]
[332176740,1721007033564,-55816.4412,0.000139,2]
[332176741,1721007033575,-158.38679973,0.000139,2]
[332176742,1721007033584,-1000.0,0.000139,2]
[332176743,1721007033593,-166.25448608,0.000139,2]
[332176744,1721007033602,-158.38679973,0.000139,2]
[332176745,1721007033612,-333.33146569,0.000139,2]
[332176747,1721007033621,-354.84061564,0.00013925,2]
[332176749,1721007033630,-162.856367,0.00013928,2]
[332176750,1721007033640,-370.144069,0.00013928,2]
[332176751,1721007033649,-1000.0,0.00013973,5]
[332176752,1721007033658,-500.0,0.00013989,2]
[332176753,1721007033667,-500.0,0.00013989,2]
[332176754,1721007033676,-582.06,0.00013989,2]
[332176755,1721007033686,-500.0,0.00013989,2]
[332176756,1721007033695,-500.0,0.00013989,2]
[332176757,1721007033704,-1795.55,0.00013989,2]
[332176758,1721007033713,-155.0,0.00013989,2]
[332176759,1721007033722,-235.80641618,0.00013989,2]
[332176760,1721007033731,-618.72061409,0.00013989,2]
[332176761,1721007033740,-208.21787373,0.00013989,2]
[332176762,1721007033750,-584.97351167,0.00013989,2]
[332176763,1721007033759,-5933.21207966,0.00013999,2]
[332176764,1721007033768,-500.0,0.00013999,2]
[332176765,1721007033777,-509.64,0.00013999,2]
[332176766,1721007033786,-500.0,0.00013999,2]
[332176767,1721007033795,-500.0,0.00013999,2]
[332176768,1721007033804,-500.0,0.00013999,2]
[332176769,1721007033813,-500.0,0.00013999,2]
[332176770,1721007033822,-298.84654406,0.00013999,2]
[332176771,1721007033831,-189.60001577,0.00013999,2]
[332176772,1721007033840,-500.0,0.00013999,2]
[332176773,1721007033849,-500.0,0.00013999,2]
[332176774,1721007033858,-150.0,0.00013999,2]
[332176775,1721007033867,-344.0941253,0.00013999,2]
[332176776,1721007033876,-500.0,0.00013999,2]
[332176777,1721007033887,-500.0,0.00013999,2]
[332176778,1721007033897,-501.07,0.00013999,2]
[332176779,1721007033906,-500.0,0.00013999,2]
[332176780,1721007033915,-597.0,0.00013999,2]
[332176781,1721007033925,-500.0,0.00013999,2]
[332176782,1721007033934,-500.0,0.00013999,2]
[332176783,1721007033943,-607.54,0.00013999,2]
[332176784,1721007033952,-582.16997995,0.00013999,2]
[332176785,1721007033962,-500.0,0.00013999,2]
[332176786,1721007033971,-174.76912304,0.00013999,2]
[332176787,1721007033980,-476.43846555,0.00013999,2]
[332176788,1721007033989,-500.0,0.00013999,2]
[332176789,1721007033998,-500.0,0.00013999,2]
[332176790,1721007034007,-500.0,0.00013999,2]
[332176791,1721007034016,-226.67142415,0.00013999,2]
[332176792,1721007034026,-500.0,0.00013999,2]
[332176793,1721007034035,-500.0,0.00013999,2]
[332176794,1721007034044,-500.0,0.00013999,2]
[332176795,1721007034053,-235.13,0.00013999,2]
[332176796,1721007034063,-500.0,0.00013999,2]
[332176797,1721007034073,-500.0,0.00013999,2]
[332176798,1721007034082,-500.0,0.00013999,2]
[332176799,1721007034091,-500.0,0.00013999,2]
[332176800,1721007034100,-500.0,0.00013999,2]
[332176801,1721007034109,-500.0,0.00013999,2]
[332176802,1721007034120,-500.0,0.00013999,2]
[332176803,1721007034129,-500.0,0.00013999,2]
[332176804,1721007034139,-500.0,0.00013999,2]
[332176805,1721007034149,-500.0,0.00013999,2]
[332176806,1721007034158,-606.3,0.00013999,2]
[332176807,1721007034167,-500.0,0.00013999,2]
[332176808,1721007034177,-500.0,0.00013999,2]
[332176809,1721007034186,-500.0,0.00013999,2]
[332176810,1721007034196,-500.0,0.00013999,2]
[332176811,1721007034205,-500.0,0.00013999,2]
[332176812,1721007034215,-155.0,0.00013999,2]
[332176813,1721007034224,-275.19184509,0.00013999,2]
[332176814,1721007034233,-500.0,0.00013999,2]
[332176815,1721007034242,-500.0,0.00013999,2]
[332176816,1721007034251,-528.86,0.00013999,2]
[332176817,1721007034260,-1516.5,0.00013999,2]
[332176818,1721007034270,-510.19901975,0.00013999,2]
[332176819,1721007034279,-150.01,0.00013999,2]
[332176820,1721007034288,-630.26004826,0.00013999,2]
[332176821,1721007034298,-222.7391909,0.00013999,2]
[332176822,1721007034307,-599.0,0.00014,2]
[332176823,1721007034317,-1086698.21789336,0.00014,2]
[332176824,1721007034348,-16074.2349498,0.00014,2]
[332176825,1721007034358,-448.12958754,0.00014,2]
[332176826,1721007034370,-7450.39419363,0.00014,2]
[332176827,1721007034381,-650.01339646,0.00014,2]
[332176828,1721007034392,-616.97846919,0.00014,2]
[332176829,1721007034403,-268.29576591,0.00014,2]
[332176830,1721007034414,-922.53142088,0.00014,2]
[332176831,1721007034425,-481.71810404,0.00014,2]
[332176832,1721007034435,-650.40807414,0.00014,2]
[332176833,1721007034446,-689.30241408,0.00014,2]
[332176855,1721007037955,-596.56,0.0001083,2]
[332176856,1721007037964,-539.0569544,0.00013094,2]
[332176858,1721007037989,-57.5030456,0.00013094,2]
[332176859,1721007037998,-246.51495089,0.00013989,2]
[332176860,1721007038008,-31.36415759,0.00013999,2]
[332176861,1721007038020,-119.25316338,0.00013999,2]
[332176862,1721007038029,-169.43147185,0.00013999,2]
[332176863,1721007038041,-1573.74690834,0.00013999,2]
[332176864,1721007038054,-1562.30001323,0.00013999,2]
[332176865,1721007038063,-1108.43346639,0.00014,2]
[332176866,1721007038073,-569.52839579,0.00014,2]
[332176867,1721007038110,-5546.52909839,0.00014,2]
[332176868,1721007038123,-7832.93162208,0.00014,2]
[332176869,1721007038133,-977.69249947,0.00014,2]
[332176870,1721007038145,-335.76750053,0.00014,2]
[332176925,1721007039855,-789.6999555,0.00011199,2]
[332176926,1721007039864,-12084.68640417,0.00014,2]
[332176927,1721007039877,-11530.6918863,0.00014,2]
[332176928,1721007039986,-1817.30079434,0.00014,2]
[332176929,1721007039998,-303603.13940659,0.00014,2]
[332176930,1721007040007,-518682.66091979,0.00014,2]
[332176931,1721007040019,-476197.95467422,0.00014,2]
[332176932,1721007040131,-545.0,0.00014,2]
[332176933,1721007040140,-1950.58714316,0.00014,2]
[332176934,1721007040152,-3645.49593212,0.00014,2]
[332176935,1721007040164,-453.15640062,0.00014,2]
[332176936,1721007040279,-2745.56833603,0.00014,2]
[332176937,1721007040292,-271.98918058,0.00014,2]
[332176938,1721007040304,-696.14675089,0.00014,2]
[332176939,1721007040315,-1889.64457416,0.00014,2]
[332176940,1721007040326,-987.22897559,0.00014,2]
[332176941,1721007040338,-1011.59816096,0.00014,2]
[332177297,1721007042970,-221.60784469,0.00013989,2]
[332177300,1721007043155,-791.66637395,0.00014,2]
[332177303,1721007043166,-6541.54406194,0.00014,2]
[332177307,1721007043177,-35736.3529148,0.00014,2]
[332177311,1721007043190,-33340.24392775,0.00014,2]
[332177314,1721007043201,-397.66172814,0.00014,2]
[332177318,1721007043217,-413.38762168,0.00014,2]
[332177322,1721007043228,-1133.6435213,0.00014,2]
[332177325,1721007043239,-12611.58875453,0.00014,2]
[332177328,1721007043250,-633.489147,0.00014,2]
[332177331,1721007043260,-1519.98569104,0.00014,2]
[332177334,1721007043279,-2807.8000002,0.00014,2]
[332177337,1721007043290,-1213.6138575,0.00014,2]
[332177340,1721007043301,-502.76369336,0.00014,2]
[332177695,1721007045891,-279.20142805,0.00013989,2]
[332177698,1721007045900,-4176.00027001,0.00014,2]
[332177729,1721007046041,-155.0,0.00013452,2]
[332177731,1721007046050,-14464.94,0.00014,2]
[332177735,1721007046061,-1215.650161,0.00014,2]
[332177753,1721007046182,-385.48349412,0.00014,2]
[332177755,1721007046193,-672.9575038,0.00014,2]
[332177757,1721007046204,-281.46174588,0.00014,2]
[332177759,1721007046215,-662.63936826,0.00014,2]
[332177763,1721007046324,-563.67666353,0.00014,2]
[332177764,1721007046336,-382.88143247,0.00014,2]
[332177765,1721007046347,-389.63124367,0.00014,2]
[332177766,1721007046358,-469.65,0.00014,2]
[332177776,1721007046473,-6254.49072629,0.00014,2]
[332178074,1721007205841,231.07151,0.00025,60]
[332178081,1721007329670,1837.6044167,0.0002,30]
[332178082,1721007353818,1800.0,0.00022,30]
[332178083,1721007371141,1800.0,0.00027,120]
[332178084,1721007388521,551.10537977,0.00022,45]
[332178085,1721007391913,500.0,0.00027,120]
[332178087,1721007400835,500.0,0.00027,120]
[332178088,1721007403308,551.10537977,0.00022,45]
[332178089,1721007410347,500.0,0.00027,120]
[332178090,1721007416581,822.01,0.00018849,30]
[332178091,1721007417191,500.0,0.00027,120]
[332178092,1721007425021,500.0,0.00027,120]
[332178094,1721007432243,500.0,0.00027,120]
[332178095,1721007439129,500.0,0.00027,120]
[332178096,1721007445369,500.0,0.00027,120]
[332178097,1721007451944,500.0,0.00027,120]
[332178098,1721007460988,500.0,0.00027,120]
[332178099,1721007468601,500.0,0.00027,120]
[332178100,1721007475080,500.0,0.00027,120]
[332178101,1721007486684,500.0,0.00027,120]
[332178102,1721007494532,500.0,0.00027,120]
[332178104,1721007502298,500.0,0.00027,120]
[332178105,1721007509929,500.0,0.00027,120]
[332178106,1721007516856,500.0,0.00027,120]
[332178107,1721007523377,500.0,0.00027,120]
[332178108,1721007532386,500.0,0.00027,120]
[332178109,1721007540631,2500.0,0.00027,120]
[332178110,1721007541255,500.0,0.00027,120]
[332178111,1721007548602,500.0,0.00027,120]
[332178112,1721007555544,500.0,0.00027,120]
[332178113,1721007562721,500.0,0.00027,120]
[332178114,1721007569716,500.0,0.00027,120]
[332178115,1721007576826,500.0,0.00027,120]
[332178116,1721007584056,500.0,0.00027,120]
[332178117,1721007590420,500.0,0.00027,120]
[332178118,1721007596895,500.0,0.00027,120]
[332178119,1721007603682,500.0,0.00027,120]
[332178121,1721007611985,500.0,0.00027,120]
[332178122,1721007619478,500.0,0.00027,120]
[332178123,1721007626620,500.0,0.00027,120]
[332178124,1721007634011,500.0,0.00027,120]
[332178125,1721007641675,500.0,0.00027,120]
[332178126,1721007658809,415.63035,0.00027,120]
[332178127,1721007680721,500.0,0.00027,120]
[332178128,1721007687140,500.0,0.00027,120]
[332178129,1721007693680,500.0,0.00027,120]
[332178130,1721007703549,500.0,0.00027,120]
[332178132,1721007711090,500.0,0.00027,120]
[332178133,1721007733447,636.94287748,0.00027,120]
[332178142,1721007802514,1559.0,0.00027,120]
[332178149,1721007965626,500.0,0.00027,120]
[332178150,1721007977383,155.6,0.00027,120]
[332178151,1721008004658,753.5,0.00018849,30]
[332178154,1721008085693,510.0,0.00026027,120]
[332178155,1721008086013,510.0,0.00026301,120]
[332178156,1721008086277,510.0,0.00026575,120]
[332178157,1721008086546,510.0,0.00026849,120]
[332178160,1721008157276,3026.50988998,0.00027,120]
[332178166,1721008198418,316.8026166,0.00025,60]
[332178171,1721008231943,-597.79,0.00010516,2]
[332178173,1721008231953,-161.85860374,0.00010868,2]
[332178175,1721008231962,-150.0,0.00011068,2]
[332178177,1721008231971,-1792.38048376,0.00011098,2]
[332178179,1721008231980,-1136.70475368,0.00011098,2]
[332178181,1721008231989,-155.15695853,0.00011098,2]
[332178183,1721008231998,-213.39315218,0.00011098,2]
[332178185,1721008232007,-155.16455516,0.00011098,2]
[332178186,1721008232016,-155.0,0.00011098,2]
[332178188,1721008232025,-1542.41656831,0.00011098,2]
[332178190,1721008232035,-379.67668092,0.00011098,2]
[332178192,1721008232044,-150.0,0.00011198,2]
[332178194,1721008232053,-13025.1286642,0.00011199,2]
[332178195,1721008232062,-255.0,0.00012251,2]
[332178196,1721008232071,-155.0,0.00012273,2]
[332178197,1721008232080,-155.0,0.00012273,2]
[332178198,1721008232089,-493.48116569,0.00012302,2]
[332178199,1721008232098,-449.27,0.00012399,2]
[332178200,1721008232107,-150.0,0.000124,2]
[332178201,1721008232116,-1395.83497249,0.000124,2]
[332178202,1721008232132,-482.77585744,0.000124,2]
[332178203,1721008232142,-992.484,0.000124,2]
[332178204,1721008232153,-1000.0,0.000124,2]
[332178205,1721008232165,-6155.99517007,0.000124,2]
[332178206,1721008232174,-530.86,0.00012415,2]